fUSD/lending_fUSD_20240319
["ID","MTS","AMOUNT","RATE_DAILY","PERIOD"]
[319510857,1710815443332,-1658.58506968,0.00052571,30]
[319510860,1710815443348,-1824.09283783,0.00052571,2]
[319510863,1710815443363,-169.0,0.00052602,120]
[319510865,1710815443379,-691.80861149,0.000529,30]
[319510868,1710815443393,-12860.69818744,0.000529,30]
[319510871,1710815443411,-5930.6023143,0.000529,30]
[319510873,1710815443427,-37056.42501398,0.000529,30]
[319510876,1710815443441,-17509.26310562,0.000529,30]
[319510878,1710815443456,-3329.48752499,0.000529,30]
[319510881,1710815443471,-3623.85654667,0.000529,30]
[319510884,1710815443487,-3902.64525643,0.00052916,14]
[319510887,1710815443502,-150.0,0.00052938,120]
[319510889,1710815443517,-100000.0,0.00053,53]
[319510892,1710815443534,-567.26804843,0.00053,2]
[319510893,1710815443549,-250.0,0.00053,120]
[319510894,1710815443565,-150.0,0.00053,30]
[319510895,1710815443579,-200.0,0.00053,30]
[319510896,1710815443594,-53085.12178123,0.00053,30]
[319510897,1710815443609,-150.0,0.00053,104]
[319510898,1710815443624,-1236.54,0.00053042,120]
[319510899,1710815443640,-183.98888889,0.00053096,120]
[319510900,1710815443657,-422.72222222,0.00053096,120]
[319510901,1710815443673,-59067.73845861,0.000531,120]
[319510902,1710815443683,-193.52633377,0.00053132,2]
[319510903,1710815443692,-9894.29264935,0.000532,120]
[319510904,1710815443702,-9894.29264935,0.000532,120]
[319510905,1710815443711,-9894.29264935,0.000532,120]
[319510906,1710815443721,-9894.29264935,0.000532,120]
[319510907,1710815443731,-49015.89607749,0.00053223,2]
[319510908,1710815443740,-6224.73613088,0.000533,120]
[319510909,1710815443750,-439.8829172,0.0005331,2]
[319510910,1710815443759,-627.0,0.00053392,120]
[319510911,1710815443768,-4088.13406409,0.000535,40]
[319510912,1710815443779,-250.0,0.000535,120]
[319510913,1710815444116,-177.0,0.000535,120]
[319510914,1710815444138,-150.0,0.000535,105]
[319510915,1710815444149,-40026.75840646,0.00053527,2]
[319510916,1710815444160,-4427.04063582,0.00053599,31]
[319510917,1710815444170,-183.98888889,0.00053644,120]
[319510918,1710815444180,-422.72222222,0.00053644,120]
[319510919,1710815444190,-169.0,0.00053835,120]
[319510920,1710815444199,-627.0,0.00053852,120]
[319510921,1710815444209,-100000.0,0.00054,54]
[319510922,1710815444220,-200.0,0.00054,54]
[319510923,1710815444229,-66070.72167758,0.00054,30]
[319510924,1710815444239,-41738.75540415,0.00054,120]
[319510925,1710815444248,-250.0,0.00054,120]
[319510926,1710815444258,-150.0,0.00054,30]
[319510927,1710815444268,-21057.05764249,0.00054,120]
[319510928,1710815444277,-150.0,0.00054,106]
[319510929,1710815444286,-288.318125,0.00054,120]
[319510930,1710815444296,-151.0,0.00054,120]
[319510931,1710815444305,-151.0,0.00054,120]
[319510932,1710815444314,-151.0,0.00054,120]
[319510933,1710815444325,-151.0,0.00054,120]
[319510934,1710815444334,-153.049071,0.00054,120]
[319510935,1710815444343,-151.0,0.00054,120]
[319510936,1710815444353,-151.0,0.00054,120]
[319510937,1710815444362,-151.0,0.00054,120]
[319510938,1710815444371,-204.308384,0.00054,120]
[319510939,1710815444380,-204.308384,0.00054,120]
[319510940,1710815444390,-151.0,0.00054,120]
[319510941,1710815444399,-203.46085,0.00054,120]
[319510942,1710815444410,-151.0,0.00054,120]
[319510943,1710815444420,-500.0,0.00054,120]
[319510944,1710815444429,-500.0,0.00054,120]
[319510945,1710815444438,-500.0,0.00054,120]
[319510946,1710815444448,-500.0,0.00054,120]
[319510947,1710815444457,-500.0,0.00054,120]
[319510948,1710815444466,-500.0,0.00054,120]
[319510949,1710815444475,-500.0,0.00054,120]
[319510950,1710815444484,-500.0,0.00054,120]
[319510951,1710815444493,-500.0,0.00054,120]
[319510952,1710815444502,-500.0,0.00054,120]
[319510953,1710815444511,-500.0,0.00054,120]
[319510954,1710815444520,-500.0,0.00054,120]
[319510955,1710815444529,-500.0,0.00054,120]
[319510956,1710815444538,-183.98888889,0.00054192,120]
[319510957,1710815444547,-422.72222222,0.00054192,120]
[319510958,1710815444556,-12000.0,0.0005425,8]
[319510959,1710815444565,-197.77,0.00054404,2]
[319510960,1710815444575,-100000.0,0.0005448,120]
[319510961,1710815444584,-250.0,0.000545,120]
[319510962,1710815444594,-3500.0,0.000545,30]
[319510963,1710815444603,-150.0,0.000545,107]
[319510964,1710815444612,-8984.87149174,0.00054594,30]
[319510965,1710815444622,-207.47847493,0.000546,7]
[319510966,1710815444632,-183.98888889,0.0005474,120]
[319510967,1710815444641,-422.72222222,0.0005474,120]
[319510968,1710815444650,-200.0,0.00054746,90]
[319510969,1710815444660,-200.0,0.00054746,90]
[319510970,1710815444670,-153.50284938,0.00054747,120]
[319510971,1710815444679,-7639.7153379,0.00054756,2]
[319510972,1710815444689,-1631.3227314,0.00054756,2]
[319510973,1710815444698,-1183.6832093,0.00054756,2]
[319510974,1710815444708,-54771.3805973,0.00054756,2]
[319510975,1710815444717,-1045.6294362,0.00054756,2]
[319510976,1710815444726,-3344.9134365,0.00054756,2]
[319510977,1710815444735,-880.116641,0.00054756,120]
[319510978,1710815444745,-200.0,0.00054784,90]
[319510979,1710815444756,-200.0,0.00054784,90]
[319510980,1710815444766,-200.0,0.00054784,90]
[319510981,1710815444777,-200.0,0.00054784,90]
[319510982,1710815444786,-200.0,0.00054784,90]
[319510983,1710815444795,-200.0,0.00054784,90]
[319510984,1710815444804,-200.0,0.00054784,90]
[319510985,1710815444813,-200.0,0.00054784,90]
[319510986,1710815444822,-500.0,0.00054794,30]
[319510987,1710815444832,-500.0,0.00054794,30]
[319510988,1710815444842,-500.0,0.00054794,30]
[319510989,1710815444851,-500.0,0.00054794,30]
[319510990,1710815444861,-500.0,0.00054794,30]
[319510991,1710815444870,-500.0,0.00054794,30]
[319510992,1710815444879,-500.0,0.00054794,120]
[319510993,1710815444889,-500.0,0.00054794,120]
[319510994,1710815444898,-502.74914164,0.00054794,120]
[319510995,1710815444908,-500.0,0.00054794,120]
[319510996,1710815444918,-500.0,0.00054794,120]
[319510997,1710815444927,-500.0,0.00054794,120]
[319510998,1710815444936,-500.0,0.00054794,120]
[319510999,1710815444946,-501.18347238,0.00054794,120]
[319511000,1710815444955,-500.0,0.00054794,120]
[319511001,1710815444964,-500.0,0.00054794,120]
[319511002,1710815444973,-500.0,0.00054794,120]
[319511003,1710815444984,-500.0,0.00054794,120]
[319511004,1710815444994,-500.0,0.00054794,120]
[319511005,1710815445003,-305.79987929,0.00054794,120]
[319511006,1710815445012,-447.8827988,0.00054794,120]
[319511007,1710815445023,-500.0,0.00054794,120]
[319511008,1710815445032,-500.0,0.00054794,120]
[319511009,1710815445041,-500.0,0.00054794,120]
[319511010,1710815445051,-618.21988495,0.00054794,120]
[319511011,1710815445060,-500.0,0.00054794,120]
[319511012,1710815445069,-500.0,0.00054794,120]
[319511013,1710815445079,-500.0,0.00054794,120]
[319511014,1710815445088,-500.0,0.00054794,120]
[319511015,1710815445098,-500.0,0.00054794,120]
[319511016,1710815445107,-500.0,0.00054794,120]
[319511017,1710815445117,-501.2422606,0.00054794,120]
[319511018,1710815445126,-500.0,0.00054794,120]
[319511019,1710815445136,-502.16592858,0.00054794,120]
[319511020,1710815445146,-500.0,0.00054794,120]
[319511021,1710815445156,-502.80003134,0.00054794,120]
[319511022,1710815445165,-367.44284141,0.00054794,120]
[319511023,1710815445174,-502.87475227,0.00054794,120]
[319511024,1710815445185,-405.79762181,0.00054794,120]
[319511025,1710815445195,-500.0,0.00054794,120]
[319511026,1710815445205,-500.0,0.00054794,120]
[319511027,1710815445217,-299.95322081,0.00054794,120]
[319511028,1710815445227,-500.0,0.00054794,120]
[319511029,1710815445236,-227.91378691,0.00054794,120]
[319511030,1710815445246,-500.0,0.00054794,120]
[319511031,1710815445256,-500.0,0.00054794,120]
[319511032,1710815445266,-526.5,0.00054794,120]
[319511033,1710815445275,-500.0,0.00054794,120]
[319511034,1710815445285,-500.0,0.00054794,120]
[319511035,1710815445296,-500.0,0.00054794,120]
[319511036,1710815445306,-500.0,0.00054794,120]
[319511037,1710815445315,-500.0,0.00054794,120]
[319511038,1710815445325,-1145.69,0.00054794,120]
[319511039,1710815445334,-500.0,0.00054794,120]
[319511040,1710815445343,-925.71,0.00054794,120]
[319511041,1710815445353,-500.0,0.00054794,120]
[319511042,1710815445362,-500.0,0.00054794,120]
[319511043,1710815445371,-500.0,0.00054794,120]
[319511044,1710815445381,-294.41355369,0.00054794,120]
[319511045,1710815445390,-1056.46,0.00054794,120]
[319511046,1710815445399,-500.0,0.00054794,120]
[319511047,1710815445410,-687.06,0.00054794,120]
[319511048,1710815445419,-500.0,0.00054794,120]
[319511049,1710815445428,-500.0,0.00054794,120]
[319511050,1710815445437,-500.0,0.00054794,120]
[319511051,1710815445447,-506.18308661,0.00054794,120]
[319511052,1710815445456,-500.0,0.00054794,120]
[319511053,1710815445465,-159.47099187,0.00054794,120]
[319511054,1710815445474,-500.0,0.00054794,120]
[319511055,1710815445484,-500.0,0.00054794,120]
[319511056,1710815445493,-500.0,0.00054794,120]
[319511057,1710815445502,-500.0,0.00054794,120]
[319511058,1710815445511,-500.0,0.00054794,120]
[319511059,1710815445521,-500.0,0.00054794,120]
[319511060,1710815445531,-500.0,0.00054794,120]
[319511061,1710815445541,-500.0,0.00054794,120]
[319511062,1710815445550,-500.0,0.00054794,120]
[319511063,1710815445559,-500.0,0.00054794,120]
[319511064,1710815445569,-500.0,0.00054794,120]
[319511065,1710815445578,-243.02653158,0.00054794,120]
[319511066,1710815445587,-500.0,0.00054794,120]
[319511067,1710815445596,-500.0,0.00054794,120]
[319511068,1710815445605,-500.0,0.00054794,120]
[319511069,1710815445614,-500.0,0.00054794,120]
[319511070,1710815445623,-500.0,0.00054794,120]
[319511071,1710815445633,-500.0,0.00054794,120]
[319511072,1710815445642,-500.0,0.00054794,120]
[319511073,1710815445652,-500.0,0.00054794,120]
[319511074,1710815445663,-500.0,0.00054794,120]
[319511075,1710815445672,-500.0,0.00054794,120]
[319511076,1710815445683,-500.0,0.00054794,120]
[319511077,1710815445694,-500.17,0.00054794,120]
[319511078,1710815445706,-500.0,0.00054794,120]
[319511079,1710815445717,-500.0,0.00054794,120]
[319511080,1710815445727,-500.0,0.00054794,120]
[319511081,1710815445737,-500.0,0.00054794,120]
[319511082,1710815445748,-504.14644654,0.00054794,120]
[319511083,1710815445758,-502.85758683,0.00054794,120]
[319511084,1710815445769,-500.0,0.00054794,120]
[319511085,1710815445780,-500.0,0.00054794,120]
[319511086,1710815445791,-500.0,0.00054794,120]
[319511087,1710815445803,-500.0,0.00054794,120]
[319511088,1710815445814,-500.0,0.00054794,120]
[319511089,1710815445824,-598.34605692,0.00054794,120]
[319511090,1710815445835,-500.0,0.00054794,120]
[319511091,1710815445847,-500.0,0.00054794,120]
[319511092,1710815445858,-500.0,0.00054794,120]
[319511093,1710815445869,-1329.78,0.00054794,120]
[319511094,1710815445880,-582.83,0.00054794,120]
[319511095,1710815445892,-500.0,0.00054794,120]
[319511096,1710815445904,-500.0,0.00054794,120]
[319511097,1710815445922,-500.0,0.00054794,120]
[319511098,1710815445935,-505.92860024,0.00054794,120]
[319511099,1710815445947,-500.0,0.00054794,120]
[319511100,1710815445959,-629.18,0.00054794,120]
[319511102,1710815445970,-500.0,0.00054794,120]
[319511103,1710815445981,-500.0,0.00054794,120]
[319511104,1710815445991,-500.0,0.00054794,120]
[319511105,1710815446003,-1669.07,0.00054794,120]
[319511106,1710815446013,-504.87531379,0.00054794,120]
[319511107,1710815446024,-1669.07,0.00054794,120]
[319511108,1710815446036,-624.44429623,0.00054794,120]
[319511109,1710815446047,-1669.07,0.00054794,120]
[319511112,1710815446059,-1669.07,0.00054794,120]
[319511114,1710815446070,-1669.07,0.00054794,120]
[319511116,1710815446080,-1669.07,0.00054794,120]
[319511117,1710815446091,-500.0,0.00054794,120]
[319511118,1710815446104,-1669.07,0.00054794,120]
[319511119,1710815446115,-2203.11,0.00054794,120]
[319511120,1710815446129,-1669.07,0.00054794,120]
[319511121,1710815446140,-1669.07,0.00054794,120]
[319511122,1710815446151,-1669.07,0.00054794,120]
[319511123,1710815446165,-500.0,0.00054794,120]
[319511124,1710815446175,-500.0,0.00054794,120]
[319511125,1710815446187,-500.0,0.00054794,120]
[319511126,1710815446197,-500.0,0.00054794,120]
[319511127,1710815446208,-500.0,0.00054794,120]
[319511128,1710815446218,-1669.07,0.00054794,120]
[319511129,1710815446231,-500.51628904,0.00054794,120]
[319511130,1710815446242,-1669.07,0.00054794,120]
[319511131,1710815446252,-500.0,0.00054794,120]
[319511132,1710815446263,-1669.07,0.00054794,120]
[319511133,1710815446274,-1669.07,0.00054794,120]
[319511134,1710815446285,-1669.07,0.00054794,120]
[319511135,1710815446297,-543.05,0.00054794,120]
[319511137,1710815446310,-1669.07,0.00054794,120]
[319511139,1710815446321,-511.34709388,0.00054794,120]
[319511140,1710815446332,-1669.07,0.00054794,120]
[319511142,1710815446343,-1669.07,0.00054794,120]
[319511144,1710815446354,-1669.07,0.00054794,120]
[319511146,1710815446365,-501.14725274,0.00054794,120]
[319511147,1710815446376,-1669.07,0.00054794,120]
[319511148,1710815446386,-1669.07,0.00054794,120]
[319511149,1710815446396,-500.0,0.00054794,120]
[319511150,1710815446408,-1669.07,0.00054794,120]
[319511151,1710815446417,-500.0,0.00054794,120]
[319511152,1710815446427,-1669.07,0.00054794,120]
[319511153,1710815446436,-500.0,0.00054794,120]
[319511154,1710815446446,-624.59453677,0.00054794,120]
[319511155,1710815446455,-1669.21964773,0.00054794,120]
[319511156,1710815446464,-500.0,0.00054794,120]
[319511157,1710815446473,-500.0,0.00054794,120]
[319511158,1710815446482,-500.0,0.00054794,120]
[319511159,1710815446491,-500.0,0.00054794,120]
[319511160,1710815446500,-500.0,0.00054794,120]
[319511161,1710815446510,-500.0,0.00054794,120]
[319511162,1710815446520,-429.766009,0.00054794,120]
[319511163,1710815446529,-500.0,0.00054794,120]
[319511164,1710815446538,-500.23087484,0.00054794,120]
[319511165,1710815446547,-500.0,0.00054794,120]
[319511166,1710815446556,-1193.44,0.00054794,120]
[319511167,1710815446566,-500.0,0.00054794,120]
[319511168,1710815446575,-500.0,0.00054794,120]
[319511169,1710815446584,-500.0,0.00054794,120]
[319511170,1710815446593,-500.0,0.00054794,120]
[319511171,1710815446602,-501.20979633,0.00054794,120]
[319511172,1710815446612,-500.0,0.00054794,120]
[319511173,1710815446621,-500.0,0.00054794,120]
[319511174,1710815446630,-501.27962809,0.00054794,120]
[319511175,1710815446639,-500.0,0.00054794,120]
[319511176,1710815446648,-585.04777858,0.00054794,120]
[319511177,1710815446659,-500.0,0.00054794,120]
[319511178,1710815446668,-500.0,0.00054794,120]
[319511179,1710815446678,-500.0,0.00054794,120]
[319511180,1710815446687,-501.41689367,0.00054794,120]
[319511181,1710815446696,-665.4,0.00054794,120]
[319511182,1710815446706,-500.0,0.00054794,120]
[319511183,1710815446715,-500.0,0.00054794,120]
[319511184,1710815446724,-1023.53,0.00054794,120]
[319511185,1710815446736,-500.0,0.00054794,120]
[319511186,1710815446747,-500.0,0.00054794,120]
[319511187,1710815446756,-500.0,0.00054794,120]
[319511188,1710815446767,-500.0,0.00054794,120]
[319511189,1710815446778,-500.0,0.00054794,120]
[319511190,1710815446789,-500.0,0.00054794,120]
[319511191,1710815446799,-200.0,0.00054794,120]
[319511192,1710815446808,-562.8,0.00054794,120]
[319511193,1710815446817,-501.11925838,0.00054794,120]
[319511194,1710815446826,-679.96,0.00054794,120]
[319511195,1710815446836,-500.0,0.00054794,120]
[319511196,1710815446845,-500.0,0.00054794,120]
[319511199,1710815446854,-500.0,0.00054794,120]
[319511200,1710815446863,-500.0,0.00054794,120]
[319511203,1710815446872,-500.0,0.00054794,120]
[319511205,1710815446881,-500.0,0.00054794,120]
[319511207,1710815446890,-500.0,0.00054794,120]
[319511209,1710815446899,-500.0,0.00054794,120]
[319511210,1710815446910,-500.73334959,0.00054794,120]
[319511211,1710815446920,-500.0,0.00054794,30]
[319511212,1710815446931,-508.17373688,0.00054794,120]
[319511213,1710815446940,-500.0,0.00054794,120]
[319511214,1710815446949,-500.0,0.00054794,120]
[319511215,1710815446958,-500.0,0.00054794,120]
[319511216,1710815446968,-500.0,0.00054794,120]
[319511217,1710815446977,-501.040711,0.00054794,120]
[319511218,1710815446986,-500.0,0.00054794,120]
[319511219,1710815446996,-500.0,0.00054794,120]
[319511220,1710815447005,-500.0,0.00054794,120]
[319511221,1710815447014,-500.0,0.00054794,120]
[319511222,1710815447024,-500.0,0.00054794,120]
[319511223,1710815447033,-500.86659437,0.00054794,120]
[319511224,1710815447042,-605.17,0.00054794,120]
[319511225,1710815447051,-500.0,0.00054794,120]
[319511226,1710815447061,-500.0,0.00054794,120]
[319511227,1710815447070,-500.0,0.00054794,120]
[319511228,1710815447079,-500.78792202,0.00054794,120]
[319511229,1710815447089,-519.12,0.00054794,120]
[319511230,1710815447098,-500.0,0.00054794,120]
[319511231,1710815447107,-500.0,0.00054794,120]
[319511232,1710815447117,-492.98842238,0.00054794,120]
[319511233,1710815447126,-500.0,0.00054794,120]
[319511234,1710815447135,-500.0,0.00054794,120]
[319511235,1710815447145,-500.0,0.00054794,120]
[319511236,1710815447154,-500.0,0.00054794,120]
[319511237,1710815447165,-808.77,0.00054794,120]
[319511238,1710815447175,-500.0,0.00054794,120]
[319511239,1710815447185,-500.0,0.00054794,120]
[319511240,1710815447195,-500.0,0.00054794,120]
[319511241,1710815447366,-500.0,0.00054794,120]
[319511242,1710815447387,-617.67,0.00054794,120]
[319511243,1710815447397,-500.0,0.00054794,120]
[319511244,1710815447409,-500.0,0.00054794,120]
[319511245,1710815447420,-500.0,0.00054794,120]
[319511246,1710815447431,-500.71361537,0.00054794,120]
[319511247,1710815447441,-500.0,0.00054794,120]
[319511248,1710815447450,-500.0,0.00054794,120]
[319511249,1710815447460,-500.0,0.00054794,120]
[319511250,1710815447470,-576.88,0.00054794,120]
[319511251,1710815447481,-560.64,0.00054794,120]
[319511252,1710815447490,-500.0,0.00054794,120]
[319511253,1710815447500,-500.0,0.00054794,120]
[319511254,1710815447510,-500.0,0.00054794,120]
[319511255,1710815447519,-500.0,0.00054794,120]
[319511256,1710815447530,-860.34,0.00054794,120]
[319511257,1710815447540,-500.0,0.00054794,120]
[319511258,1710815447549,-500.0,0.00054794,120]
[319511259,1710815447560,-293.76126482,0.00054794,120]
[319511260,1710815447569,-500.0,0.00054794,120]
[319511261,1710815447579,-500.29683548,0.00054794,120]
[319511262,1710815447588,-500.0,0.00054794,120]
[319511263,1710815447598,-500.0,0.00054794,120]
[319511264,1710815447609,-767.96,0.00054794,120]
[319511265,1710815447619,-500.0,0.00054794,120]
[319511266,1710815447628,-500.0,0.00054794,120]
[319511267,1710815447638,-590.56326764,0.00054794,120]
[319511268,1710815447647,-517.1925265,0.00054794,120]
[319511269,1710815447657,-500.0,0.00054794,120]
[319511270,1710815447666,-500.0,0.00054794,120]
[319511271,1710815447676,-500.0,0.00054794,120]
[319511272,1710815447685,-651.74,0.00054794,120]
[319511273,1710815447695,-500.0,0.00054794,120]
[319511274,1710815447704,-500.0,0.00054794,120]
[319511275,1710815447713,-510.12,0.00054794,120]
[319511276,1710815447723,-500.0,0.00054794,120]
[319511277,1710815447732,-500.0,0.00054794,120]
[319511278,1710815447742,-500.0,0.00054794,120]
[319511279,1710815447751,-500.0,0.00054794,120]
[319511280,1710815447760,-500.0,0.00054794,120]
[319511281,1710815447769,-500.0,0.00054794,120]
[319511282,1710815447779,-500.0,0.00054794,120]
[319511283,1710815447788,-560.99,0.00054794,120]
[319511284,1710815447797,-500.0,0.00054794,120]
[319511285,1710815447807,-500.0,0.00054794,120]
[319511286,1710815447816,-500.0,0.00054794,120]
[319511287,1710815447825,-500.0,0.00054794,120]
[319511288,1710815447835,-500.0,0.00054794,120]
[319511289,1710815447844,-500.0,0.00054794,120]
[319511290,1710815447854,-500.0,0.00054794,120]
[319511291,1710815447863,-500.0,0.00054794,120]
[319511292,1710815447872,-500.0,0.00054794,120]
[319511293,1710815447882,-500.0,0.00054794,120]
[319511294,1710815447891,-500.0,0.00054794,120]
[319511295,1710815447900,-500.0,0.00054794,120]
[319511296,1710815447911,-500.0,0.00054794,120]
[319511297,1710815447921,-500.0,0.00054794,120]
[319511298,1710815447930,-504.46220833,0.00054794,120]
[319511299,1710815447939,-500.0,0.00054794,120]
[319511300,1710815447948,-500.0,0.00054794,120]
[319511301,1710815447957,-500.0,0.00054794,120]
[319511302,1710815447966,-500.0,0.00054794,120]
[319511303,1710815447976,-500.0,0.00054794,120]
[319511304,1710815447986,-1149.13,0.00054794,120]
[319511305,1710815447995,-500.0,0.00054794,120]
[319511306,1710815448004,-500.0,0.00054794,120]
[319511307,1710815448014,-500.0,0.00054794,120]
[319511308,1710815448023,-500.0,0.00054794,120]
[319511309,1710815448032,-500.0,0.00054794,120]
[319511310,1710815448042,-500.0,0.00054794,120]
[319511311,1710815448051,-526.59,0.00054794,120]
[319511312,1710815448060,-500.0,0.00054794,120]
[319511313,1710815448070,-300.23359379,0.00054794,2]
[319511314,1710815448080,-500.0,0.00054794,120]
[319511315,1710815448089,-1855.21,0.00054794,120]
[319511316,1710815448099,-570.05,0.00054794,120]
[319511317,1710815448108,-500.0,0.00054794,120]
[319511318,1710815448117,-500.0,0.00054794,120]
[319511319,1710815448127,-500.0,0.00054794,120]
[319511320,1710815448136,-500.0,0.00054794,120]
[319511321,1710815448146,-500.0,0.00054794,120]
[319511322,1710815448155,-500.0,0.00054794,120]
[319511323,1710815448166,-500.0,0.00054794,120]
[319511324,1710815448175,-500.0,0.00054794,120]
[319511325,1710815448186,-500.0,0.00054794,120]
[319511326,1710815448196,-562.65,0.00054794,120]
[319511327,1710815448206,-500.0,0.00054794,120]
[319511328,1710815448215,-500.0,0.00054794,120]
[319511329,1710815448228,-500.0,0.00054794,120]
[319511330,1710815448238,-500.0,0.00054794,120]
[319511331,1710815448248,-500.0,0.00054794,120]
[319511332,1710815448258,-500.0,0.00054794,120]
[319511333,1710815448268,-1166.58,0.00054794,120]
[319511334,1710815448278,-500.0,0.00054794,120]
[319511335,1710815448288,-500.0,0.00054794,120]
[319511336,1710815448297,-500.0,0.00054794,120]
[319511337,1710815448308,-500.0,0.00054794,120]
[319511338,1710815448317,-850.9,0.00054794,120]
[319511339,1710815448327,-500.0,0.00054794,120]
[319511340,1710815448337,-500.0,0.00054794,120]
[319511341,1710815448348,-500.0,0.00054794,120]
[319511342,1710815448358,-500.0,0.00054794,120]
[319511343,1710815448367,-545.02,0.00054794,120]
[319511344,1710815448376,-498.77693836,0.00054794,120]
[319511345,1710815448386,-500.0,0.00054794,120]
[319511346,1710815448395,-633.95,0.00054794,120]
[319511347,1710815448404,-404.50390906,0.00054794,120]
[319511348,1710815448415,-500.0,0.00054794,120]
[319511349,1710815448424,-500.0,0.00054794,120]
[319511350,1710815448433,-500.0,0.00054794,120]
[319511351,1710815448442,-1253.56,0.00054794,120]
[319511352,1710815448451,-500.0,0.00054794,120]
[319511353,1710815448460,-500.0,0.00054794,120]
[319511354,1710815448470,-481.27432463,0.00054794,120]
[319511355,1710815448479,-500.0,0.00054794,120]
[319511356,1710815448488,-500.0,0.00054794,120]
[319511357,1710815448497,-500.0,0.00054794,120]
[319511358,1710815448506,-818.27,0.00054794,120]
[319511359,1710815448515,-542.07,0.00054794,120]
[319511360,1710815448524,-500.3501967,0.00054794,120]
[319511361,1710815448534,-500.0,0.00054794,120]
[319511362,1710815448543,-500.0,0.00054794,120]
[319511363,1710815448552,-500.0,0.00054794,120]
[319511364,1710815448562,-500.0,0.00054794,120]
[319511365,1710815448571,-500.0,0.00054794,120]
[319511366,1710815448581,-500.0,0.00054794,120]
[319511367,1710815448591,-500.0,0.00054794,120]
[319511368,1710815448600,-500.0,0.00054794,120]
[319511369,1710815448609,-500.0,0.00054794,120]
[319511370,1710815448618,-500.0,0.00054794,120]
[319511371,1710815448627,-701.1,0.00054794,120]
[319511372,1710815448636,-500.0,0.00054794,120]
[319511373,1710815448648,-500.0,0.00054794,120]
[319511374,1710815448658,-500.0,0.00054794,120]
[319511375,1710815448667,-500.0,0.00054794,120]
[319511376,1710815448676,-500.39,0.00054794,120]
[319511377,1710815448686,-500.0,0.00054794,120]
[319511378,1710815448695,-1016.71,0.00054794,120]
[319511379,1710815448704,-500.0,0.00054794,120]
[319511380,1710815448713,-500.58601368,0.00054794,120]
[319511381,1710815448723,-904.07,0.00054794,120]
[319511382,1710815448732,-500.0,0.00054794,120]
[319511383,1710815448741,-500.0,0.00054794,120]
[319511384,1710815448751,-500.0,0.00054794,120]
[319511385,1710815448760,-729.32,0.00054794,120]
[319511386,1710815448769,-500.0,0.00054794,120]
[319511387,1710815448778,-500.0,0.00054794,120]
[319511388,1710815448789,-500.0,0.00054794,120]
[319511389,1710815448799,-546.36,0.00054794,120]
[319511390,1710815448809,-500.0,0.00054794,120]
[319511391,1710815448817,-500.0,0.00054794,120]
[319511392,1710815448827,-500.0,0.00054794,120]
[319511393,1710815448835,-500.0,0.00054794,120]
[319511394,1710815448845,-500.92466809,0.00054794,120]
[319511395,1710815448854,-500.0,0.00054794,120]